[Event "European Women-ch 2023"]
[Site "Petrovac"]
[Date "2023.03.20"]
[Round "3.22"]
[White "Hapala, Elisabeth"]
[Black "Hrebenshchykova, Yelyzaveta"]
[Result "0-1"]
[ECO "B49"]
[WhiteElo "2072"]
[BlackElo "2289"]
[Annotator "TA"]
[PlyCount "80"]
[EventDate "2023.03.15"]
[EventType "swiss"]
[EventCountry "MNE"]
[SourceTitle "playchess.com"]
[Source "ChessBase"]
[SourceQuality "1"]
[TimeControl "40/5400+30:1800+30"]

{[%evp 16,80,38,27,32,36,16,0,0,0,14,0,0,0,0,0,0,-18,0,-24,-18,-18,-20,-10,-10,-18,-12,-36,-38,-59,-68,-254,-259,-262,-263,-226,-167,-180,-201,-237,-243,-135,-107,-233,-174,-629,-628,-617,-605,-751,-744,-731,-379,-728,-704,-29976,-29977,-29977,-321,-29978,-29979,-29979,-29980,-29979,-29980,-5720,-1862]} 1. e4 {[%emt 0:00:01]} c5 {[%emt 0:00:06]} 2. Nf3 {[%emt 0:00:04]} e6 {[%emt 0:00:03]} 3. d4 {[%emt 0:00:04]} cxd4 {[%emt 0:00:04]} 4. Nxd4 {[%emt 0:00:04]} Nc6 {[%emt 0:00:04]} 5. Nc3 {[%emt 0:00:06]} Qc7 {[%emt 0:00:10]} 6. Be3 {[%emt 0:00:31]} a6 {[%emt 0:01:05]} 7. a3 {[%emt 0:00:24]} b5 {[%emt 0:01:14]} 8. Nxc6 {[%emt 0:00:12]} Qxc6 {[%emt 0:00:28]} 9. Be2 {[%emt 0:00:48]} Bb7 {[%emt 0:02:51] B49: Sicilian: Taimanov: 5 Nc3 Qc7 6 Be3 a6 7 Be2.} 10. O-O {[%emt 0:01:23]} Qc7 {[%emt 0:18:37]} 11. Bf3 {[%emt 0:25:49]} Bd6 {[%emt 0:10:06] The position is equal.} 12. g3 {[%emt 0:00:31]} Nf6 {[%emt 0:01:15]} 13. Qd3 {[%emt 0:05:38] [#]} Be5 $146 {[%emt 0:11:06]} ({Predecessor:} 13... h5 14. Rad1 Be5 15. Bd4 d6 16. Bg2 h4 17. f4 Bxd4+ 18. Qxd4 hxg3 19. hxg3 O-O-O {½-½ Ilievski,D-Brajovic,R YUG-ch34 Bjelovar 1979 (9)}) 14. Bd4 {[%emt 0:00:31]} d6 {[%emt 0:01:13]} 15. Bxe5 {[%emt 0:06:33]} dxe5 {[%emt 0:00:04]} 16. Rfd1 {[%emt 0:00:14]} O-O {[%emt 0:11:48][%cal Be8g8,Bg8f8,Bf8e7][%mdl 32]} 17. Qd6 {[%emt 0:10:13]} Rfc8 {[%emt 0:00:28]} 18. Bg2 {[%emt 0:05:40]} Qxd6 {[%emt 0:02:25]} 19. Rxd6 {[%emt 0:00:05]} g5 {[%emt 0:00:04]} 20. f3 {[%emt 0:13:09]} Kf8 {[%emt 0:05:22]} 21. Kf2 {[%emt 0:03:46]} Ke7 {[%emt 0:00:51]} 22. Rad1 {[%emt 0:00:23]} Nd5 {[%emt 0:07:52]} 23. Nxd5+ $2 {[%emt 0:09:55]} (23. R6xd5 $15 exd5 24. exd5) 23... Bxd5 $19 {[%emt 0:00:29]} ({Weaker is} 23... Kxd6 24. Nb6+ Ke7 25. Rd7+ (25. Nxc8+ Rxc8 26. c3 f5 $11) 25... Ke8 26. Nxc8 (26. Rxb7 $2 Rxc2+ 27. Kg1 Rc1+ 28. Bf1 Rd8 $19) 26... Kxd7 27. Nb6+ Kd6 28. Nxa8 $11) 24. Rb6 {[%emt 0:00:36]} Rxc2+ {[%emt 0:00:06]} 25. Kg1 {[%emt 0:00:08]} Bc6 {[%emt 0:03:10]} 26. Bf1 {[%emt 0:00:29] [#]} Be8 $1 {[%emt 0:02:48]} 27. b4 {[%emt 0:03:08]} Ra2 {[%emt 0:03:42]} 28. Rd3 {[%emt 0:02:10]} ({White should try} 28. h4 $19) 28... h5 {[%emt 0:08:15] aiming for ...Rc8.} 29. Rc3 {[%emt 0:05:54] Inhibits Rc8.} (29. Rb7+ $17 Kf6 30. Rc7) 29... Rd8 {[%emt 0:01:17] Hoping for ...Rd1.} 30. Rxa6 $2 {[%emt 0:00:40]} (30. Bd3) 30... Rd1 {[%emt 0:00:59]} 31. Ra7+ {[%emt 0:02:08]} Kf8 {[%emt 0:01:13] ...Raa1 is the strong threat.} 32. Rc8 {[%emt 0:01:18] [#]} Raa1 $1 {[%emt 0:00:14]} 33. Raa8 {[%emt 0:00:04]} Rxf1+ {[%emt 0:00:36]} 34. Kg2 {[%emt 0:00:01] [#]} Rfb1 $1 {[%emt 0:00:22]} 35. Rxe8+ {[%emt 0:00:08][%mdl 4096] Endgame KRR-KRR} (35. Rc2 g4) 35... Kg7 {[%emt 0:00:03]} 36. Rh8 {[%emt 0:03:15]} Ra2+ {[%emt 0:02:22]} 37. Kh3 {[%emt 0:00:01]} Rh1 {[%emt 0:00:09][%csl Ga2][%cal Rh1h2]} 38. Rag8+ {[%emt 0:02:34]} Kf6 {[%emt 0:00:05][%csl Gh1][%cal Ra2h2]} 39. Rh6+ {[%emt 0:00:42]} Ke7 {[%emt 0:00:05][%csl Gh1][%cal Ra2h2]} 40. Rxh5 {[%emt 0:00:00]} Raxh2+ {[%emt 0:00:00] Weighted Error Value: White=0.51/Black=0.07 (flawless)} ({Not} 40... Rxa3 41. Kg4 $14 (41. Rgxg5 Rxf3 42. Rxe5 Rf2 $14) (41. Rhxg5 Kf6 $11)) 0-1

[Event "European Women-ch 2023"]
[Site "Petrovac"]
[Date "2023.03.20"]
[Round "3.22"]
[White "Pirvulescu, Ekaterina"]
[Black "Kostina, Veronika"]
[Result "0-1"]
[ECO "E11"]
[WhiteElo "2032"]
[BlackElo "1855"]
[Annotator "TA"]
[PlyCount "104"]
[EventDate "2023.03.15"]
[EventType "swiss"]
[EventCountry "MNE"]
[SourceTitle "playchess.com"]
[Source "ChessBase"]
[SourceQuality "1"]
[TimeControl "40/5400+30:1800+30"]

{[%evp 10,104,12,8,42,19,16,6,33,5,22,37,56,56,37,29,29,16,60,-10,35,10,40,20,49,20,9,8,48,-31,-15,-22,-22,-36,-27,-63,1,-95,14,-47,63,45,65,44,71,65,92,96,88,52,171,55,51,35,61,0,54,3,57,43,44,50,51,26,20,4,14,-17,-17,-27,-15,-24,-20,-54,-53,-241,-241,-235,-261,-531,-532,-529,-521,-1669,-1637,-1516,-1406,-975,-737,-692,-633,-29971,-29971,-29972,-29974,-29997,-29998]} 1. d4 {[%emt 0:00:08]} Nf6 {[%emt 0:00:05]} 2. c4 {[%emt 0:00:05]} e6 {[%emt 0:00:03]} 3. Nf3 {[%emt 0:00:05]} Bb4+ {[%emt 0:00:05]} 4. Nbd2 {[%emt 0:00:07]} O-O {[%emt 0:00:12]} 5. a3 {[%emt 0:00:05]} Be7 {[%emt 0:00:05]} 6. e4 {[%emt 0:00:10]} d6 {[%emt 0:00:04][%cal Oe6e5] E11: Bogo-Indian.} (6... d5 $5 {[%cal Rd5e4]}) 7. Bd3 {[%emt 0:00:25]} e5 {[%emt 0:04:57]} 8. d5 {[%emt 0:10:31]} a5 {[%emt 0:01:46] [#] The position is equal.} 9. h3 $146 {[%emt 0:02:51]} ({Predecessor:} 9. Bc2 Bd7 10. b3 Na6 11. O-O b5 12. cxb5 Bxb5 13. Re1 Nc5 14. a4 Ba6 15. Ba3 {½-½ Suleymanli,A (2552)-Predke,A (2684) EU-ch 23rd Vrnjacka Banja 2023 (4)}) 9... a4 {[%emt 0:04:58]} 10. Nb1 {[%emt 0:00:15]} Nbd7 {[%emt 0:04:28]} 11. Nc3 {[%emt 0:00:04]} Nc5 {[%emt 0:00:05]} 12. Bc2 {[%emt 0:00:24]} c6 {[%emt 0:05:18]} 13. Be3 {[%emt 0:00:32]} Nfd7 {[%emt 0:01:54]} 14. g4 {[%emt 0:01:08]} (14. Bxa4 $14 Nxa4 15. Nxa4) 14... Qa5 {[%emt 0:04:13]} 15. O-O {[%emt 0:02:16]} Nb6 {[%emt 0:07:17]} 16. Nd2 {[%emt 0:01:09]} cxd5 {[%emt 0:09:52]} 17. cxd5 {[%emt 0:08:49]} Bd7 {[%emt 0:01:18]} 18. Qe2 {[%emt 0:05:03]} Qa6 {[%emt 0:21:50]} 19. Qf3 {[%emt 0:13:54]} (19. Qxa6 $14 bxa6 20. Bxc5 dxc5 21. Kg2) 19... Nc4 $15 {[%emt 0:03:22]} 20. Nxc4 {[%emt 0:01:41]} Qxc4 {[%emt 0:00:01]} 21. Rad1 {[%emt 0:00:20]} Rfc8 {[%emt 0:08:45]} 22. Qg3 {[%emt 0:01:53]} Be8 {[%emt 0:05:36] Black is more active.} (22... b5 $15) 23. h4 {[%emt 0:00:43] [#]} (23. Bb1 $11 {keeps the balance.}) 23... Nd7 {[%emt 0:05:16]} (23... b5 $1 $17) 24. g5 {[%emt 0:01:39]} (24. Bd3 $11 Qb3 25. Rb1) 24... f6 {[%emt 0:03:53]} ({Black should play} 24... b5 $1 $15) 25. Bd3 $36 {[%emt 0:01:07][%mdl 2048] White is more active.} Qc7 {[%emt 0:00:19]} 26. Be2 {[%emt 0:02:50]} fxg5 {[%emt 0:01:55]} 27. hxg5 {[%emt 0:00:13]} Nf8 {[%emt 0:00:28]} 28. Bg4 {[%emt 0:01:59]} Bd7 {[%emt 0:00:01]} 29. Bh5 {[%emt 0:00:35] Threatens to win with f4.} Qd8 {[%emt 0:00:26]} (29... Be8 $1 $14 30. Be2 b5) 30. Kg2 {[%emt 0:03:24]} (30. f4 $18 exf4 31. Qxf4) 30... Be8 $14 {[%emt 0:00:17]} (30... Ng6 $2 31. Bxg6 hxg6 32. Rh1 $18) 31. Bg4 {[%emt 0:01:46]} Bd7 {[%emt 0:00:02]} 32. Bh5 {[%emt 0:00:47]} ({Better is} 32. Bf5 $14) 32... b5 {[%emt 0:01:38]} (32... Ng6 $2 33. Bxg6 hxg6 34. Rh1 $18) (32... Be8 $1 $11 33. Bg4 Bd7) 33. Rh1 {[%emt 0:02:48]} (33. f4 $14 exf4 34. Qxf4) 33... Be8 {[%emt 0:01:02]} (33... b4 $11 34. Na2 (34. axb4 a3 $11) 34... bxa3 35. bxa3 Rc4) 34. Bg4 {[%emt 0:11:00]} Bd7 {[%emt 0:00:05]} 35. Bf5 $1 {[%emt 0:00:27]} g6 {[%emt 0:03:51]} 36. Bh3 {[%emt 0:02:04]} (36. Bxd7 {is interesting.} Qxd7 37. f4 b4 38. axb4 a3 39. fxe5 axb2 40. e6) 36... Rc4 {[%emt 0:00:29][%cal Bc8c4,Bc4b4,Bb4b3][%mdl 32]} 37. Rc1 {[%emt 0:09:37]} b4 {[%emt 0:01:00]} 38. axb4 {[%emt 0:01:21]} Rxb4 {[%emt 0:00:01]} 39. Bxd7 {[%emt 0:01:41]} (39. Rc2 {seems wilder.} Bxh3+ 40. Rxh3 Qc8 41. Qf3) 39... Qxd7 {[%emt 0:00:04]} 40. Rc2 {[%emt 0:00:00]} (40. Rb1 {is more complex.} Bd8 41. Qf3 Rb3 42. Rhc1) 40... Qb7 {[%emt 0:00:00]} 41. Bc1 {[%emt 0:02:00]} Rc8 {[%emt 0:07:05]} 42. f3 $2 {[%emt 0:03:45] [#] Now White is beyond hope.} (42. Qg4 $15) 42... Rb3 $1 $19 {[%emt 0:03:25][%cal Oa4a3] Hoping for ...a3!} 43. Qe1 {[%emt 0:15:31]} Bd8 {[%emt 0:01:04] And now ...Ba5 would win.} 44. Rh2 $2 {[%emt 0:05:21]} (44. Qe3) 44... Ba5 {[%emt 0:03:29]} 45. Kg3 {[%emt 0:06:54] [#]} a3 $1 {[%emt 0:00:56][%cal Ba4a3,Ba3b2][%mdl 544]} 46. Bd2 {[%emt 0:02:55]} (46. Qd1 axb2) 46... axb2 {[%emt 0:03:22] Strongly threatening ...Bxc3.} 47. Qb1 {[%emt 0:01:48]} Bxc3 {[%emt 0:00:38]} 48. Bxc3 {[%emt 0:00:05]} Rcxc3 {[%emt 0:00:22]} 49. Rxc3 {[%emt 0:00:35]} Rxc3 {[%emt 0:00:02]} 50. Rxb2 {[%emt 0:00:05]} Qf7 {[%emt 0:00:37] Black mates.} 51. Qh1 {[%emt 0:00:23]} Qf4+ {[%emt 0:00:13]} 52. Kg2 {[%emt 0:01:44]} Qxf3+ {[%emt 0:00:13] Weighted Error Value: White=0.51/Black=0.27 (precise)} 0-1

[Event "European Women-ch 2023"]
[Site "Petrovac"]
[Date "2023.03.20"]
[Round "3.23"]
[White "Schulze, Lara"]
[Black "Valkova, Angelika"]
[Result "1/2-1/2"]
[ECO "B01"]
[WhiteElo "2277"]
[BlackElo "2055"]
[Annotator "TA"]
[PlyCount "93"]
[EventDate "2023.03.15"]
[EventType "swiss"]
[EventCountry "MNE"]
[SourceTitle "playchess.com"]
[Source "ChessBase"]
[SourceQuality "1"]
[TimeControl "40/5400+30:1800+30"]

{[%evp 10,93,35,31,37,-8,-8,-3,-4,-15,-4,-7,0,0,0,0,15,0,10,0,16,-21,10,0,0,0,0,-31,0,-11,0,-38,-36,-56,-31,-39,0,-59,-62,-110,-102,-100,-108,-102,-97,-140,-150,-141,-138,-116,-116,-117,-7,-292,-305,-280,-260,-299,-8,-41,-8,-9,-14,-33,0,0,0,0,0,0,0,0,0,0,0,0,0,0,0,0,0,0,0,0,0,0]} 1. e4 {[%emt 0:00:08]} d5 {[%emt 0:00:03]} 2. exd5 {[%emt 0:00:10]} Qxd5 {[%emt 0:00:05]} 3. Nc3 {[%emt 0:00:11]} Qa5 {[%emt 0:00:06]} 4. d4 {[%emt 0:00:38]} Nf6 {[%emt 0:00:07]} 5. Nf3 {[%emt 0:00:45]} Bf5 {[%emt 0:00:14]} 6. Bd2 {[%emt 0:00:55]} e6 $1 {[%emt 0:04:45][%mdl 4] is recently more successful than 6...c6. B01: Scandinavian Defence.} 7. Ne4 {[%emt 0:27:36][%mdl 64] Discovered Attack} Qb6 {[%emt 0:13:43]} 8. Nxf6+ {[%emt 0:00:35]} gxf6 {[%emt 0:00:05]} 9. Bc3 {[%emt 0:06:33]} Nc6 {[%emt 0:09:58]} 10. Bd3 $1 {[%emt 0:09:03]} Bxd3 {[%emt 0:07:33]} 11. Qxd3 {[%emt 0:00:19]} O-O-O {[%emt 0:05:19]} 12. O-O {[%emt 0:02:57] [#]} Rd5 $146 {[%emt 0:12:59]} ({Predecessor:} 12... Bg7 13. Rfd1 Ne5 14. Nxe5 fxe5 15. Qg3 exd4 16. Qxg7 dxc3 17. Qxc3 Rhg8 {0-1 Pljusnin,V (1743)-Paolantonio,M (1700) IECG QC.2005.0.00068 email}) 13. a4 {[%emt 0:08:25]} Be7 {[%emt 0:07:46]} 14. Rfd1 {[%emt 0:04:59]} h5 {[%emt 0:05:07]} 15. b3 {[%emt 0:11:48]} h4 {[%emt 0:10:08][%cal Oc6e5]} (15... Ne5 $5 {[%cal Re5d3]} 16. Qe3 (16. dxe5 Rxd3 17. Rxd3 f5 $17) (16. Nxe5 fxe5 17. a5 Qc6 $11) 16... Nxf3+ 17. Qxf3 Kb8 $11) 16. Bb2 {[%emt 0:08:39]} Ne5 {[%emt 0:04:00]} 17. Nxe5 {[%emt 0:02:36]} ({Much weaker is} 17. dxe5 Rxd3 18. Rxd3 h3 19. exf6 Bc5 $17) 17... fxe5 {[%emt 0:00:04]} 18. a5 {[%emt 0:03:02]} Rxa5 {[%emt 0:01:57]} 19. Rxa5 {[%emt 0:06:20][%mdl 64] Remove Defender} Qxa5 {[%emt 0:00:06]} 20. dxe5 {[%emt 0:00:33]} (20. Bc3 $5 {[%cal Rc3a5]} e4 21. Bxa5 exd3 22. Rxd3 $11) 20... Rd8 {[%emt 0:00:48] Against Qd7+} 21. Qe2 {[%emt 0:01:07]} Rxd1+ {[%emt 0:02:38]} 22. Qxd1 $15 {[%emt 0:00:01][%mdl 4096] Endgame KQB-KQB} Bg5 {[%emt 0:02:28]} 23. h3 {[%emt 0:01:06]} (23. Kf1 $11) 23... Bf4 {[%emt 0:01:07]} 24. Kf1 {[%emt 0:02:14]} (24. c4 $15 {is more appropriate.}) 24... Bxe5 $17 {[%emt 0:02:33]} 25. Bxe5 {[%emt 0:00:34]} Qxe5 {[%emt 0:00:04] KQ-KQ} 26. Qg4 {[%emt 0:00:10]} Qf5 {[%emt 0:03:05]} 27. Qxh4 {[%emt 0:00:50]} Qxc2 {[%emt 0:00:07][%cal Rc2d1]} 28. Qh8+ {[%emt 0:00:16]} Kd7 {[%emt 0:00:07][%cal Rc2d1]} 29. Qd4+ {[%emt 0:00:09]} Kc6 {[%emt 0:02:09]} 30. b4 {[%emt 0:01:17] [#]} e5 {[%emt 0:02:02] Inhibits g3.} 31. b5+ $2 {[%emt 0:00:47][%mdl 8192]} (31. Qxe5 $11 Qc4+ 32. Kg1) 31... Kxb5 $19 {[%emt 0:00:05]} 32. Qxe5+ {[%emt 0:00:10]} c5 {[%emt 0:00:55]} 33. h4 {[%emt 0:00:57][%cal Bh3h4,Bh4h5][%mdl 32] [#]} Qd1+ {[%emt 0:02:26]} (33... Ka4 $1 $19 {Strongly threatening ...b5.} 34. g3 c4) 34. Qe1 $15 {[%emt 0:00:06]} Qd5 {[%emt 0:00:12] Threatens to win with ...a5.} 35. Qe2+ {[%emt 0:01:00]} c4 {[%emt 0:01:31]} 36. h5 $1 {[%emt 0:00:01]} Qf5 {[%emt 0:01:11]} 37. g4 {[%emt 0:01:01] The position is equal.} Qf6 {[%emt 0:00:28]} 38. Qe4 {[%emt 0:00:39] Qf5+ is the strong threat.} Kb4 {[%emt 0:00:42]} 39. Qxb7+ {[%emt 0:00:43]} Kc3 {[%emt 0:00:06]} 40. Qxa7 {[%emt 0:00:00] Qa1+ would kill now.} Kb2 {[%emt 0:00:00] Prevents Qa1+.} 41. Qb7+ {[%emt 0:11:38]} Kc1 {[%emt 0:05:22]} 42. Qh1 {[%emt 0:02:50]} c3 {[%emt 0:09:01]} 43. Ke2+ {[%emt 0:08:14]} Kb2 {[%emt 0:00:52] ( -> ...Qa6+)} 44. Qb7+ {[%emt 0:00:16]} (44. h6 $2 Qa6+ 45. Ke3 c2 $19) 44... Kc1 {[%emt 0:01:24] And now ...Qd4 would win.} 45. Qh1+ {[%emt 0:02:20]} Kb2 {[%emt 0:00:06]} 46. Qb7+ {[%emt 0:00:46]} ({Don't blunder} 46. h6 $2 Qa6+ 47. Ke3 c2 $19) 46... Kc1 {[%emt 0:00:05]} 47. Qh1+ {[%emt 0:00:14] Whites escaped into a draw.   Weighted Error Value: White=0.24 (precise) /Black=0.20 (precise)} 1/2-1/2

[Event "European Women-ch 2023"]
[Site "Petrovac"]
[Date "2023.03.20"]
[Round "3.24"]
[White "Sliwicka, Alicja"]
[Black "Koljevic, Nikolina"]
[Result "1-0"]
[ECO "B45"]
[WhiteElo "2272"]
[BlackElo "2042"]
[Annotator "TA"]
[PlyCount "49"]
[EventDate "2023.03.15"]
[EventType "swiss"]
[EventCountry "MNE"]
[SourceTitle "playchess.com"]
[Source "ChessBase"]
[SourceQuality "1"]
[TimeControl "40/5400+30:1800+30"]

{[%evp 11,49,25,25,24,39,26,23,23,22,32,46,45,48,33,39,46,46,45,51,54,56,51,60,76,70,60,185,147,145,150,142,151,164,131,964,937,1125,1112,1110,1077]} 1. e4 {[%emt 0:00:03]} c5 {[%emt 0:00:07]} 2. Nf3 {[%emt 0:00:06]} e6 {[%emt 0:00:06]} 3. d4 {[%emt 0:00:05]} cxd4 {[%emt 0:00:06]} 4. Nxd4 {[%emt 0:00:04]} Nf6 {[%emt 0:00:10]} 5. Nc3 {[%emt 0:00:04]} Nc6 {[%emt 0:00:06]} 6. Ndb5 {[%emt 0:00:05]} Bc5 {[%emt 0:01:21]} 7. Nd6+ {[%emt 0:00:13] B45: Sicilian Four Knights.} Ke7 $1 {[%emt 0:00:05]} 8. Bf4 {[%emt 0:00:07]} e5 {[%emt 0:04:59]} 9. Nf5+ {[%emt 0:00:09][%cal Bd6f5,Bf5e3,Be3d5,Bd5e7][%mdl 32] White has an edge.} Kf8 {[%emt 0:00:05]} 10. Bg5 {[%emt 0:00:05]} h6 {[%emt 0:04:17]} 11. Bxf6 {[%emt 0:00:09]} Qxf6 {[%emt 0:00:23]} 12. Bc4 {[%emt 0:05:04]} d6 {[%emt 0:05:09]} 13. Ne3 {[%emt 0:01:32]} Be6 {[%emt 0:04:32] [#] ...Bxc4 is the strong threat.} 14. O-O {[%emt 0:06:19] [#]} Kg8 $146 {[%emt 0:07:56]} ({Predecessor:} 14... g6 15. Ncd5 Qd8 16. c3 Rc8 17. Qd3 a6 18. Rad1 Kg7 19. b4 Ba7 20. Bb3 Rf8 {1-0 Fecker,N (2308)-Kurmann,O (2430) SUI World Cup qual rapid 2021 (3)}) 15. Ncd5 {[%emt 0:05:44]} Qg5 {[%emt 0:06:58]} 16. c3 {[%emt 0:16:04]} Ne7 {[%emt 0:12:33]} 17. Nxe7+ {[%emt 0:19:16]} (17. b4 {simplifies} Bxe3 18. Nxe3 Bxc4 19. Nxc4 Rd8 20. Qf3) 17... Qxe7 {[%emt 0:00:06]} 18. Nd5 {[%emt 0:07:40]} Qh4 {[%emt 0:16:30]} (18... Qd7 $14) 19. b4 $18 {[%emt 0:04:32][%cal Bb2b4,Bb4c5][%mdl 32]} Qxe4 {[%emt 0:02:56]} 20. Ne7+ {[%emt 0:12:15]} Kf8 {[%emt 0:00:54]} 21. Bxe6 {[%emt 0:00:12]} fxe6 {[%emt 0:06:59]} 22. bxc5 {[%emt 0:00:06]} d5 $2 {[%emt 0:02:19][%mdl 8192]} (22... Kxe7 $16 23. cxd6+ (23. Qxd6+ Kf7 $16) 23... Kf6) 23. Re1 {[%emt 0:00:39][%mdl 64] Skewer, Deflection. White is clearly winning.} Qh7 {[%emt 0:01:55] [#]} 24. Rxe5 $1 {[%emt 0:00:44]} Kxe7 {[%emt 0:01:25]} 25. Qxd5 {[%emt 0:00:13] Weighted Error Value: White=0.00 (flawless) /Black=0.16 (very precise)} 1-0

[Event "European Women-ch 2023"]
[Site "Petrovac"]
[Date "2023.03.20"]
[Round "3.25"]
[White "Walter, Ema"]
[Black "Zhapova, Yana"]
[Result "0-1"]
[ECO "B13"]
[WhiteElo "2048"]
[BlackElo "2269"]
[Annotator "TA"]
[PlyCount "82"]
[EventDate "2023.03.15"]
[EventType "swiss"]
[EventCountry "MNE"]
[SourceTitle "playchess.com"]
[Source "ChessBase"]
[SourceQuality "1"]
[TimeControl "40/5400+30:1800+30"]

{[%evp 19,82,29,24,27,25,23,28,27,33,20,30,17,16,21,19,0,29,0,39,0,22,14,37,45,116,-104,-95,-95,-108,-101,-94,-102,-94,-111,-110,-92,-97,-110,-80,-112,-9,-12,-8,-11,-10,-42,-43,-43,-7,-195,-193,-367,-341,-29984,-989,-29989,-29990,-29990,-29991,-29991,-29992,-29993,-29994,-29997,-29998]} 1. e4 {[%emt 0:00:03]} c6 {[%emt 0:00:10]} 2. d4 {[%emt 0:00:05]} d5 {[%emt 0:00:10]} 3. exd5 {[%emt 0:00:06]} cxd5 {[%emt 0:00:08]} 4. Bd3 {[%emt 0:00:03]} Nc6 {[%emt 0:00:20]} 5. c3 {[%emt 0:00:06]} Nf6 {[%emt 0:00:12]} 6. Bf4 {[%emt 0:00:09]} Bg4 {[%emt 0:00:22]} 7. Qb3 {[%emt 0:00:06]} Qd7 {[%emt 0:00:17]} 8. Nd2 {[%emt 0:00:08]} e6 {[%emt 0:00:19]} 9. Ngf3 {[%emt 0:00:08]} Bd6 $1 {[%emt 0:00:30][%mdl 4] is more profitable than 9...Bxf3 at the moment.} 10. Bxd6 {[%emt 0:00:08]} Qxd6 {[%emt 0:00:10]} 11. O-O {[%emt 0:00:10][%cal Bh1f1,Bf1e1,Be1e5][%mdl 32] B13: Caro-Kann: Exchange Variation and Panov-Botvinnik Attack.} O-O {[%emt 0:00:25]} 12. Rfe1 {[%emt 0:00:19]} Qc7 {[%emt 0:01:53]} 13. Ne5 {[%emt 0:02:34] White has an edge.} Nxe5 {[%emt 0:00:19]} 14. Rxe5 {[%emt 0:00:19]} Bh5 {[%emt 0:06:34]} 15. Qc2 {[%emt 0:04:31][%cal Od3h7]} Bg6 {[%emt 0:00:44]} 16. Bxg6 {[%emt 0:15:50]} hxg6 {[%emt 0:00:08]} 17. Re3 {[%emt 0:01:01] [#]} Rfc8 $146 {[%emt 0:05:16]} ({Predecessor:} 17... b5 18. a4 b4 19. Nb3 Rab8 20. Nc5 bxc3 21. Rxc3 Qf4 22. Rd1 Qd6 23. Nd3 Qb6 {0-1 Loskutova,V (2076)-Nechaeva,M (2373) RUS-chT Rapid (Women) 2022 (6.4)}) 18. Qd3 {[%emt 0:04:08]} Qd6 {[%emt 0:08:21][%cal Ob7b5]} 19. Rh3 {[%emt 0:09:42]} Nh5 {[%emt 0:05:31] And now ...Nf4 would win.} 20. Qe3 {[%emt 0:08:26]} b5 {[%emt 0:08:38]} 21. Nf3 {[%emt 0:09:17] Hoping for Ne5.} f6 {[%emt 0:23:08] [#] Inhibits Ne5.} (21... Qf4 $1 $14) 22. Ne5 $2 {[%emt 0:16:49]} fxe5 $17 {[%emt 0:01:55]} 23. dxe5 {[%emt 0:00:48]} Qf8 {[%emt 0:12:05]} 24. Rf3 {[%emt 0:01:59]} Qe7 {[%emt 0:00:25] White must now prevent ...g5.} 25. g4 {[%emt 0:00:43] [#]} Rc4 $1 {[%emt 0:00:45]} 26. gxh5 {[%emt 0:00:56]} gxh5 {[%emt 0:00:37]} 27. Rg3 {[%emt 0:06:01]} Rf8 {[%emt 0:03:22]} 28. Kh1 {[%emt 0:05:36]} h4 $36 {[%emt 0:02:36][%mdl 2048] Keeping White busy. Black is more active.} 29. Rg6 {[%emt 0:03:04] [#]} d4 $1 {[%emt 0:09:11][%mdl 512]} 30. cxd4 $11 {[%emt 0:03:01]} Qb7+ {[%emt 0:00:18]} 31. Kg1 {[%emt 0:00:13]} Rf3 {[%emt 0:00:34]} 32. Qg5 {[%emt 0:01:58]} Rxd4 {[%emt 0:01:29]} 33. Rc1 {[%emt 0:01:23][%cal Oc1c8]} Qd7 {[%emt 0:02:52] Prevents Rc8+. Threatens to win with ...Rd1+.} (33... h3 $5 {[%cal Rb7d7]} 34. Rxe6 Qd7 $15) 34. Kg2 $2 {[%emt 0:03:31] [#] This costs White the game.} (34. Qh6 $2 Rd1+ 35. Kg2 Rxc1 36. Qxc1 Qd5 $19) (34. h3 $1 $11 {and White is okay.}) 34... Rf8 $1 $19 {[%emt 0:02:44]} 35. Re1 $2 {[%emt 0:01:36]} (35. Rf1 {was necessary.}) 35... Rdf4 {[%emt 0:01:01]} ({But not} 35... Rf5 $2 36. Qh6 $19) 36. Re2 $2 {[%emt 0:02:58]} (36. Kg1 $19 Rxf2 37. Rf6 R8xf6 38. exf6 Rxf6 39. Qxh4) 36... R8f5 {[%emt 0:01:40]} (36... Qc6+ $142 37. Kg1 Qc1+ 38. Kg2 h3+ 39. Kg3 Qg1+ 40. Kxh3 Qf1+ 41. Qg2 Rf3+ 42. Rg3 Qxe2 43. Rxf3 Rxf3+ 44. Qg3 Qxf2 {[%mdl 64] Pin} 45. Kg4 Rxg3+ 46. hxg3 Kf7 47. b4 Kg6 48. Kh4 Kf5 49. Kh3 g5 50. a3 g4+ 51. Kh4 Qh2#) 37. Qh6 {[%emt 0:00:04]} Qd5+ {[%emt 0:00:45] Black mates.} 38. Kg1 {[%emt 0:00:15]} Qd1+ {[%emt 0:00:11]} ({Don't play} 38... Qxa2 39. Qxg7#) 39. Kg2 {[%emt 0:00:04]} h3+ {[%emt 0:01:06][%mdl 64] Decoy} (39... Qxe2 40. Qxg7#) 40. Kxh3 {[%emt 0:00:00]} Qf1+ {[%emt 0:00:00]} ({Resist} 40... Qxe2 41. Qxg7#) 41. Kg3 {[%emt 0:03:23]} Rf3+ {[%emt 0:00:42] Artfully played by Zhapova.   Weighted Error Value: White=0.62/Black=0.28 (precise)} 0-1